fUST/lending_fUST_20250608
["ID","MTS","AMOUNT","RATE_DAILY","PERIOD"]
[364944770,1749331846045,-160.0,0.0002052,2]
[364944771,1749331846056,-440.0,0.00020542,2]
[364944772,1749331846067,-637.19,0.00020542,2]
[364944773,1749331846079,-440.0,0.00020542,2]
[364944774,1749331846090,-440.0,0.00020543,2]
[364944775,1749331846101,-770.58,0.000206,2]
[364944776,1749331846112,-315.8,0.000206,2]
[364944777,1749331846123,-923.3,0.00020762,2]
[364944778,1749331846134,-440.0,0.00020816,2]
[364944779,1749331846146,-637.19,0.00020816,2]
[364944780,1749331846158,-440.0,0.00020816,2]
[364944781,1749331846169,-440.0,0.00020817,2]
[364944782,1749331846180,-590.033501,0.000209,4]
[364944783,1749331846191,-590.03350074,0.00021038,4]
[364944784,1749331846362,-440.0,0.0002109,2]
[364944785,1749331846379,-637.19,0.0002109,2]
[364944786,1749331846390,-440.0,0.0002109,2]
[364944787,1749331846400,-440.0,0.00021091,2]
[364944788,1749331846409,-590.03350074,0.00021176,4]
[364944789,1749331846419,-590.03350074,0.00021314,5]
[364944790,1749331846429,-440.0,0.00021364,2]
[364944791,1749331846439,-637.19,0.00021364,2]
[364944792,1749331846449,-530.55800665,0.00021364,2]
[364944793,1749331846458,-440.0,0.00021365,2]
[364944794,1749331846468,-207.4,0.00021421,2]
[364944795,1749331846477,-590.03350074,0.00021452,5]
[364944796,1749331846487,-152.58971722,0.00021458,2]
[364944797,1749331846496,-590.03350074,0.0002159,5]
[364944798,1749331846506,-440.0,0.00021638,2]
[364944799,1749331846516,-637.19,0.00021638,2]
[364944800,1749331846526,-440.0,0.00021639,2]
[364944801,1749331846536,-590.03350074,0.00021728,5]
[364944802,1749331846547,-590.03350074,0.00021866,6]
[364944803,1749331846557,-440.0,0.00021912,2]
[364944804,1749331846569,-637.19,0.00021912,2]
[364944805,1749331846579,-150.0,0.00022,2]
[364944806,1749331846589,-590.03350074,0.00022003,6]
[364944807,1749331846603,-590.03350074,0.00022141,6]
[364944808,1749331846613,-565.22503453,0.00022186,2]
[364944809,1749331846623,-637.19,0.00022186,2]
[364944810,1749331846633,-770.58,0.000222,7]
[364944811,1749331846643,-315.8,0.000222,7]
[364944812,1749331846652,-306.0,0.00022219,2]
[364944813,1749331846662,-590.03350074,0.00022279,6]
[364944814,1749331846672,-590.03350074,0.00022417,7]
[364944815,1749331846682,-637.19,0.0002246,2]
[364944816,1749331846692,-590.03350074,0.00022555,7]
[364944817,1749331846702,-1846.6,0.00022649,2]
[364944818,1749331846711,-590.03350074,0.00022693,7]
[364944819,1749331846722,-215.0738,0.0002279,2]
[364944820,1749331846733,-590.03350074,0.00022831,8]
[364944821,1749331846743,-590.03350074,0.00022969,8]
[364944822,1749331846753,-12042.23098288,0.00023,2]
[364944823,1749331846763,-152.58971722,0.0002302,2]
[364944824,1749331846773,-590.03350074,0.00023107,8]
[364944825,1749331846783,-405.0,0.00023145,2]
[364944826,1749331846792,-590.03350074,0.00023245,8]
[364944827,1749331846805,-555.524011,0.00023324,3]
[364944828,1749331846814,-590.03350074,0.00023383,9]
[364944829,1749331846824,-150.0,0.00023388,2]
[364944830,1749331846834,-150.79,0.00023388,2]
[364944831,1749331846844,-150.0,0.00023388,2]
[364944832,1749331846858,-150.097,0.00023388,2]
[364944833,1749331846868,-590.03350074,0.00023521,9]
[364944834,1749331846878,-504.14560111,0.00023545,2]
[364944835,1749331846889,-363.74015138,0.00023559,2]
[364944836,1749331846899,-168.0,0.0002358,2]
[364944837,1749331846908,-168.0,0.00023582,2]
[364944838,1749331846918,-168.0,0.00023591,2]
[364944839,1749331846929,-168.0,0.00023593,2]
[364944840,1749331846939,-590.03350074,0.00023659,9]
[364944841,1749331846949,-168.0,0.0002367,2]
[364944842,1749331846960,-500.0,0.00023679,2]
[364944843,1749331846970,-315.08178181,0.0002368,7]
[364944844,1749331846979,-11851.94353573,0.0002368,7]
[364944845,1749331846989,-168.0,0.00023683,2]
[364944846,1749331846999,-5000.0,0.00023692,2]
[364944847,1749331847010,-29314.72112498,0.000237,2]
[364944849,1749331904699,165.977137,0.00013699,2]
[364944854,1749332839138,-440.0,0.00019721,2]
[364944855,1749332839161,-213.01382694,0.0002081,2]
[364944856,1749332839183,-229.56495552,0.0002081,2]
[364944857,1749332839204,-160.0,0.00020845,2]
[364944858,1749332839227,-888.05,0.00020846,2]
[364944859,1749332839249,-156.93701741,0.0002158,2]
[364944860,1749332839271,-202.926739,0.00021945,2]
[364944861,1749332839294,-801.8699876,0.00022741,2]
[364944862,1749332848331,-152.71319306,0.0002308,30]
[364944866,1749332960236,-150.0,0.00020641,2]
[364944867,1749332960260,-864.6,0.0002091,2]
[364944869,1749333016144,76.14,0.0002091,2]
[364944889,1749333032076,-777.45,0.0002091,2]
[364944891,1749333032086,-316.0,0.00021912,2]
[364944893,1749333032095,-316.0,0.00021912,2]
[364944895,1749333032105,-1707.18,0.00022811,2]
[364944897,1749333032117,-174.524659,0.00023122,2]
[364944899,1749333032127,-228.0,0.00023134,2]
[364944901,1749333032137,-1963.50223617,0.00023135,2]
[364944902,1749333032150,-259.49776383,0.00023135,2]
[364944903,1749333032160,-640.65939147,0.00023135,2]
[364944904,1749333032248,-68.34060853,0.00023135,2]
[364944905,1749333032258,-203.04298253,0.0002319,2]
[364944906,1749333032310,-4.35701747,0.0002319,2]
[364944908,1749333032320,-438.68804243,0.00023204,2]
[364944910,1749333032330,-440.0,0.00023204,2]
[364944911,1749333032340,-178.97651913,0.00023204,2]
[364944941,1749333037871,-261.02348087,0.00023204,2]
[364944944,1749333037883,-470.93,0.00023204,2]
[364944946,1749333037893,-440.0,0.00023204,2]
[364944948,1749333037903,-440.0,0.00023204,2]
[364944950,1749333037912,-427.07345375,0.00023204,2]
[364945106,1749333163046,2000.0,0.00024678,30]
[364945107,1749333163304,2000.0,0.00024678,30]
[364945108,1749333163585,2000.0,0.00024678,30]
[364945109,1749333168004,165.977137,0.00013699,2]
[364945111,1749333245592,157.78072945,0.00013699,2]
[364945121,1749334032135,-221.56891348,0.00020223,2]
[364945122,1749334032159,-202.9267401,0.0002079,2]
[364945123,1749334032180,-824.93,0.00020826,2]
[364945124,1749334032205,-500.0,0.00020858,2]
[364945125,1749334032228,-199.735643,0.00021069,2]
[364945126,1749334032249,-668.1876252,0.00021124,2]
[364945127,1749334032270,-500.0,0.00021287,2]
[364945128,1749334032292,-282.08445545,0.00021326,2]
[364945129,1749334032318,-300.0,0.00021999,2]
[364945130,1749334032345,-473.0,0.00021999,2]
[364945131,1749334032369,-552.61360554,0.00022,2]
[364945132,1749334047095,-2136.31739207,0.00022,2]
[364945133,1749334076799,-833.81,0.00022148,10]
[364945134,1749334076832,-607.0,0.00022148,10]
[364945135,1749334076868,-151.0,0.0002216,7]
[364945136,1749334076900,-151.0,0.0002216,7]
[364945137,1749334076930,-185.875583,0.0002216,7]
[364945138,1749334076959,-151.0,0.0002216,7]
[364945139,1749334076989,-185.875583,0.0002216,7]
[364945140,1749334077020,-151.0,0.0002216,7]
[364945141,1749334077050,-151.0,0.0002216,7]
[364945142,1749334077079,-151.0,0.0002216,7]
[364945143,1749334077109,-151.0,0.00022431,7]
[364945144,1749334077138,-152.588104,0.00022431,7]
[364945145,1749334077170,-151.0,0.00022431,7]
[364945146,1749334077201,-151.0,0.00022432,7]
[364945147,1749334077230,-276.069883,0.00022432,7]
[364945148,1749334077259,-326.612091,0.00022433,7]
[364945149,1749334077288,-326.612091,0.00022433,7]
[364945150,1749334077316,-151.0,0.00022433,7]
[364945151,1749334077345,-151.0,0.00022433,7]
[364945152,1749334077379,-151.0,0.00022433,7]
[364945153,1749334077408,-151.0,0.00022433,7]
[364945154,1749334077438,-151.0,0.00022433,7]
[364945155,1749334077468,-168.947852,0.00022433,7]
[364945156,1749334077496,-151.0,0.00022433,7]
[364945157,1749334077525,-168.947852,0.00022433,7]
[364945158,1749334077553,-151.0,0.00022433,7]
[364945159,1749334077586,-151.0,0.00022433,7]
[364945160,1749334077617,-151.0,0.00022433,7]
[364945161,1749334077650,-185.875583,0.00022433,7]
[364945162,1749334077678,-151.0,0.00022433,7]
[364945163,1749334077705,-185.875583,0.00022433,7]
[364945164,1749334077736,-151.0,0.00022707,7]
[364945165,1749334077766,-151.0,0.00022707,7]
[364945166,1749334077795,-505.10193,0.00022707,7]
[364945167,1749334077822,-505.10193,0.00022707,7]
[364945168,1749334077851,-151.0,0.00022719,7]
[364945169,1749334077878,-151.0,0.00022719,7]
[364945170,1749334077909,-276.069883,0.00022969,7]
[364945171,1749334077939,-151.0,0.0002298,7]
[364945172,1749334077969,-151.0,0.0002298,7]
[364945173,1749334077999,-168.947852,0.0002298,7]
[364945174,1749334078028,-168.947852,0.0002298,7]
[364945175,1749334078057,-151.0,0.00023,7]
[364945176,1749334078088,-162.554833,0.00023,7]
[364945177,1749334078120,-162.554833,0.00023,7]
[364945178,1749334078148,-326.612091,0.00023,7]
[364945179,1749334078179,-326.612091,0.00023,7]
[364945180,1749334078206,-151.0,0.00023,7]
[364945181,1749334078235,-151.0,0.00023,7]
[364945182,1749334078264,-151.0,0.00023,7]
[364945183,1749334078293,-151.0,0.00023,7]
[364945184,1749334078321,-151.0,0.00023,7]
[364945185,1749334078348,-151.0,0.00023,7]
[364945186,1749334078377,-151.0,0.00023,7]
[364945187,1749334078406,-185.875583,0.00023,7]
[364945188,1749334078434,-188.0,0.00023,7]
[364945189,1749334078462,-185.875583,0.00023,7]
[364945190,1749334078608,-151.0,0.00023,7]
[364945191,1749334078648,-276.069883,0.00023005,7]
[364945192,1749334078678,-191.986266,0.00023204,7]
[364945193,1749334078706,-177.36731,0.00023204,7]
[364945194,1749334078736,-177.36731,0.00023204,7]
[364945195,1749334078766,-464.973461,0.00023204,7]
[364945196,1749334078794,-186.02433,0.00023204,7]
[364945197,1749334078822,-464.973461,0.00023204,7]
[364945198,1749334078849,-151.0,0.00023204,7]
[364945199,1749334078876,-151.0,0.00023204,7]
[364945200,1749334078906,-204.252839,0.00023204,7]
[364945201,1749334078936,-151.0,0.00023204,7]
[364945202,1749334078966,-505.10193,0.00023204,7]
[364945203,1749334078997,-505.10193,0.00023204,7]
[364945204,1749334079027,-151.0,0.00023204,7]
[364945205,1749334079055,-188.048896,0.00023204,7]
[364945206,1749334079083,-168.947852,0.00023204,7]
[364945207,1749334079112,-168.947852,0.00023204,7]
[364945208,1749334079141,-151.000003,0.00023205,7]
[364945209,1749334079169,-151.0,0.00023205,7]
[364945210,1749334079197,-151.0,0.00023205,7]
[364945211,1749334079226,-505.10193,0.00023205,7]
[364945212,1749334079255,-505.10193,0.00023205,7]
[364945213,1749334079285,-151.0,0.00023205,7]
[364945214,1749334079312,-162.554833,0.00023205,7]
[364945215,1749334079340,-39.733318,0.00023205,7]
[364945216,1749334145244,-803.6,0.00020854,2]
[364945218,1749334207382,165.977137,0.00013699,2]
[364945260,1749334232231,-804.21,0.00020862,2]
[364945262,1749334232241,-150.0,0.00021104,2]
[364945264,1749334232251,-24349.9079111,0.00021127,2]
[364945265,1749334232260,-203.63916282,0.0002156,2]
[364945266,1749334232270,-6311.06900239,0.00022,2]
[364945268,1749334232280,-167.21301176,0.00022057,2]
[364945270,1749334232290,-396.7595399,0.00022059,2]
[364945272,1749334232300,-2960.06751533,0.00022144,2]
[364945274,1749334232310,-241.12,0.00022156,2]
[364945276,1749334232320,-440.0,0.00022156,2]
[364945278,1749334232330,-823.92,0.00022156,2]
[364945280,1749334232340,-440.0,0.00022156,2]
[364945282,1749334232351,-440.0,0.00022156,2]
[364945284,1749334232361,-440.0,0.00022156,2]
[364945286,1749334232371,-440.0,0.00022156,2]
[364945288,1749334232380,-440.0,0.00022156,2]
[364945290,1749334232390,-440.0,0.00022156,2]
[364945292,1749334232400,-7847.42726447,0.00022157,2]
[364945294,1749334232410,-1152.8463866,0.00022157,2]
[364945296,1749334232421,-440.0,0.00022157,2]
[364945298,1749334232432,-440.0,0.00022157,2]
[364945302,1749334232442,-440.0,0.00022157,2]
[364945305,1749334232452,-440.0,0.00022157,2]
[364945308,1749334232461,-440.0,0.00022157,2]
[364945311,1749334232471,-440.0,0.00022157,2]
[364945313,1749334232481,-440.0,0.00022157,2]
[364945315,1749334232490,-440.0,0.00022157,2]
[364945317,1749334232500,-440.0,0.00022157,2]
[364945320,1749334232510,-440.0,0.00022157,2]
[364945321,1749334232520,-440.0,0.00022157,2]
[364945324,1749334232530,-440.0,0.00022157,2]
[364945326,1749334232540,-440.0,0.00022157,2]
[364945328,1749334232549,-500.0,0.00022157,2]
[364945330,1749334232559,-6224.55548683,0.00022158,2]
[364945334,1749334232591,-490.9644594,0.00022157,2]
[364945336,1749334232603,-9.0355406,0.00022157,2]
[364945338,1749334232613,-639.37730991,0.00022157,2]
[364945340,1749334232623,-351.58714949,0.00022158,2]
[364945342,1749334232635,-55550.49111313,0.00022158,2]
[364945344,1749334232644,-440.0,0.00022158,2]
[364945346,1749334232655,-582.25277355,0.00022158,2]
[364945348,1749334232668,-440.0,0.00022158,2]
[364945350,1749334232678,-440.0,0.00022158,2]
[364945352,1749334232688,-426.50166752,0.00022158,2]
[364945354,1749334232699,-440.0,0.00022158,2]
[364945356,1749334232709,-401.89756893,0.00022158,2]
[364945358,1749334232719,-440.0,0.00022158,2]
[364945360,1749334232729,-440.0,0.00022158,2]
[364945362,1749334232739,-440.0,0.00022158,2]
[364945364,1749334232749,-175.54712852,0.00022158,2]
[364945366,1749334232759,-483.39925872,0.00022158,2]
[364945368,1749334232768,-303.47442718,0.00022158,2]
[364945370,1749334232778,-440.0,0.00022158,2]
[364945372,1749334232787,-440.0,0.00022158,2]
[364945374,1749334232797,-440.0,0.00022158,2]
[364945376,1749334232807,-440.0,0.00022158,2]
[364945378,1749334232817,-440.0,0.00022158,2]
[364945380,1749334232828,-440.0,0.00022158,2]
[364945382,1749334232838,-440.0,0.00022158,2]
[364945384,1749334232848,-440.0,0.00022158,2]
[364945386,1749334232859,-440.0,0.00022158,2]
[364945388,1749334232870,-440.0,0.00022158,2]
[364945390,1749334232880,-557.15202567,0.00022158,2]
[364945392,1749334232889,-440.0,0.00022158,2]
[364945394,1749334232899,-440.0,0.00022158,2]
[364945396,1749334232910,-440.0,0.00022158,2]
[364945398,1749334232920,-440.0,0.00022158,2]
[364945400,1749334232930,-440.0,0.00022158,2]
[364945402,1749334232940,-440.0,0.00022158,2]
[364945403,1749334232950,-440.0,0.00022158,2]
[364945405,1749334232960,-440.0,0.00022158,2]
[364945407,1749334232970,-440.0,0.00022158,2]
[364945409,1749334232980,-440.0,0.00022158,2]
[364945411,1749334232990,-554.11897248,0.00022158,2]
[364945413,1749334232999,-440.0,0.00022158,2]
[364945415,1749334233009,-440.0,0.00022158,2]
[364945416,1749334233018,-440.0,0.00022158,2]
[364945417,1749334233028,-440.0,0.00022158,2]
[364945418,1749334233038,-500.0,0.00022159,2]
[364945419,1749334233047,-160.0,0.00022159,2]
[364945420,1749334233056,-151.0,0.0002216,7]
[364945421,1749334233066,-418.476115,0.0002216,7]
[364945422,1749334233076,-418.476115,0.0002216,7]
[364945423,1749334233086,-151.0,0.0002216,7]
[364945424,1749334233097,-999.57805349,0.0002221,3]
[364945425,1749334233107,-316.0,0.0002221,3]
[364945426,1749334233117,-316.0,0.0002221,3]
[364945427,1749334233128,-316.0,0.0002221,3]
[364945428,1749334233137,-316.0,0.0002221,3]
[364945429,1749334233147,-316.0,0.0002221,3]
[364945430,1749334233157,-316.0,0.0002221,3]
[364945431,1749334233168,-316.0,0.0002221,3]
[364945432,1749334233177,-16.04335002,0.0002221,3]
[364945464,1749334238124,-459.44791126,0.00021999,2]
[364945466,1749334238135,-500.0,0.00021999,2]
[364945468,1749334238145,-463.56064296,0.00021999,2]
[364945470,1749334238154,-169.25912603,0.00022157,2]
[364945473,1749334238168,-330.74087397,0.00022157,2]
[364945474,1749334238178,-199.81667037,0.00022157,2]
[364945477,1749334238189,-299.95664998,0.0002221,3]
[364945478,1749334238199,-316.0,0.0002221,3]
[364945481,1749334238208,-316.0,0.0002221,3]
[364945483,1749334238218,-316.0,0.0002221,3]
[364945485,1749334238228,-316.0,0.0002221,3]
[364945487,1749334238238,-316.0,0.0002221,3]
[364945488,1749334238247,-316.0,0.0002221,3]
[364945490,1749334238256,-316.0,0.0002221,3]
[364945492,1749334238266,-316.0,0.0002221,3]
[364945494,1749334238275,-316.0,0.0002221,3]
[364945496,1749334238284,-1743.0,0.0002221,3]
[364945498,1749334238294,-1743.0,0.0002221,3]
[364945500,1749334238304,-486.28581568,0.0002221,3]
[364945502,1749334238316,-916.48818943,0.0002221,3]
[364945505,1749334238327,-330.46674282,0.0002221,3]
[364945507,1749334238337,-316.0,0.0002221,3]
[364945508,1749334238348,-316.0,0.0002221,3]
[364945510,1749334238357,-316.0,0.0002221,3]
[364945512,1749334238367,-316.0,0.0002221,3]
[364945514,1749334238377,-5.53325718,0.00022351,2]
[364945517,1749334238388,-293.71756269,0.00022351,2]
[364945519,1749334238403,-200.74918013,0.00022351,2]
[364945521,1749334238413,-207.4,0.00022409,2]
[364945523,1749334238423,-1175.28532707,0.00022409,2]
[364945526,1749334238435,-1176.58715412,0.00022409,2]
[364945528,1749334238446,-913.37164521,0.00022409,2]
[364945529,1749334238455,-40.83379315,0.00022411,3]
[364945532,1749334238466,-849.66620685,0.00022411,3]
[364945533,1749334238476,-593.66,0.00022412,3]
[364945535,1749334238485,-296.83,0.00022412,3]
[364945537,1749334238495,-258.33559011,0.00022421,3]
[364945604,1749334240507,-440.0,0.00022157,2]
[364945605,1749334240518,-928.97440989,0.00022421,3]
[364945606,1749334240527,-1591.09310544,0.00022422,3]
[364945618,1749335220115,165.977137,0.00013699,2]
[364945620,1749335235114,-1794.58126019,0.00020583,2]
[364945621,1749335241139,-820.69001931,0.00020583,2]
[364945622,1749335251124,-3207.684529,0.00020583,2]
[364945623,1749335251145,-229.96065882,0.00020608,2]
[364945624,1749335251166,-311.446672,0.00020708,2]
[364945625,1749335251187,-164.90024098,0.00020758,2]
[364945626,1749335251207,-160.0,0.00020853,2]
[364945627,1749335251227,-160.0,0.00020855,2]
[364945628,1749335251247,-160.0,0.00020855,2]
[364945629,1749335251268,-793.97,0.00020855,2]
[364945630,1749335251293,-213.01382694,0.00020858,2]
[364945631,1749335251314,-229.56495552,0.00020858,2]
[364945632,1749335251338,-500.0,0.00020858,2]
[364945633,1749335251362,-300.0,0.00021124,2]
[364945634,1749335251384,-1257.76624397,0.00021125,2]
[364945635,1749335251405,-1090.0,0.00021125,2]
[364945636,1749335251427,-440.0,0.00021126,2]
[364945637,1749335251449,-440.0,0.00021126,2]
[364945638,1749335251471,-440.0,0.00021126,2]
[364945639,1749335251494,-440.0,0.00021126,2]
[364945640,1749335251518,-440.0,0.00021126,2]
[364945641,1749335251541,-430.0,0.00021126,2]
[364945642,1749335251565,-430.0,0.00021126,2]
[364945643,1749335251590,-440.0,0.000214,2]
[364945644,1749335251612,-440.0,0.000214,2]
[364945645,1749335251634,-440.0,0.000214,2]
[364945646,1749335251657,-440.0,0.000214,2]
[364945647,1749335251680,-440.0,0.00021674,2]
[364945648,1749335251702,-440.0,0.00021674,2]
[364945649,1749335251724,-440.0,0.00021674,2]
[364945650,1749335251747,-440.0,0.00021674,2]
[364945651,1749335251770,-141.03956517,0.00021948,2]
[364945653,1749335363198,-200.79595003,0.00019574,2]
[364945654,1749335363221,-642.00404997,0.00020809,2]
[364945661,1749335403133,862.4,0.00019,2]
[364945662,1749335403157,198.90201078,0.00019,2]
[364945677,1749335432533,-6931.05928466,0.00019,2]
[364945678,1749335432544,-777.64,0.00020808,2]
[364945679,1749335432554,-842.5625,0.00022151,2]
[364945680,1749335432564,-160.0,0.00022152,2]
[364945681,1749335432576,-440.0,0.00022158,2]
[364945682,1749335432585,-151.0,0.0002221,7]
[364945683,1749335432596,-151.0,0.0002221,7]
[364945685,1749335432606,-440.0,0.00022221,2]
[364945686,1749335432617,-440.0,0.00022221,2]
[364945687,1749335432627,-440.0,0.00022221,2]
[364945689,1749335432637,-440.0,0.00022221,2]
[364945690,1749335432646,-440.0,0.00022221,2]
[364945691,1749335432656,-440.0,0.00022221,2]
[364945692,1749335432666,-440.0,0.00022221,2]
[364945693,1749335432677,-440.0,0.00022221,2]
[364945694,1749335432687,-440.0,0.00022221,2]
[364945695,1749335432697,-165.01531053,0.00022221,2]
[364945696,1749335432707,-440.0,0.00022221,2]
[364945697,1749335432717,-440.0,0.00022221,2]
[364945698,1749335432726,-440.0,0.00022221,2]
[364945699,1749335432737,-440.0,0.00022221,2]
[364945700,1749335432747,-207.4,0.00022409,2]
[364945701,1749335432757,-440.0,0.00022428,2]
[364945702,1749335432767,-260.48411615,0.00022428,2]
[364945703,1749335432776,-440.0,0.00022428,2]
[364945704,1749335432786,-440.0,0.00022428,2]
[364945705,1749335432797,-440.0,0.00022428,2]
[364945706,1749335432807,-349.68371732,0.00022428,2]
[364945707,1749335432819,-440.0,0.00022428,2]
[364945708,1749335432831,-440.0,0.00022428,2]
[364945709,1749335432841,-440.0,0.00022428,2]
[364945710,1749335432851,-59.41415708,0.00022428,2]
[364945743,1749335438427,-380.58584292,0.00022428,2]
[364945746,1749335438437,-450.55440323,0.00022428,2]
[364945748,1749335438447,-440.0,0.00022428,2]
[364945750,1749335438457,-440.0,0.00022428,2]
[364945751,1749335438466,-440.0,0.00022428,2]
[364945753,1749335438476,-440.0,0.00022428,2]
[364945754,1749335438485,-440.0,0.00022428,2]
[364945756,1749335438495,-440.0,0.00022428,2]
[364945758,1749335438504,-816.68,0.00022428,2]
[364945760,1749335438515,-440.0,0.00022428,2]
[364945761,1749335438524,-67.6048159,0.00022428,2]
[364945890,1749335446480,-372.3951841,0.00022428,2]
[364945891,1749335446490,-440.0,0.00022428,2]
[364945892,1749335446504,-440.0,0.00022428,2]
[364945893,1749335446514,-440.0,0.00022428,2]
[364945894,1749335446525,-440.0,0.00022428,2]
[364945895,1749335446535,-440.0,0.00022428,2]
[364945896,1749335446546,-525.76247446,0.00022428,2]
[364945897,1749335446555,-440.0,0.00022428,2]
[364945898,1749335446565,-440.0,0.00022428,2]
[364945900,1749335446575,-420.0,0.00022428,2]
[364945902,1749335446584,-222.17326078,0.00022428,2]
[364945937,1749336264273,165.977138,0.00013699,2]
[364945939,1749336434130,-197.16145057,0.0002,2]
[364945940,1749336434152,-1210.9829792,0.00020201,2]
[364945941,1749336434175,-150.0,0.00020328,2]
[364945942,1749336434197,-300.0,0.00020485,2]
[364945943,1749336434219,-5625.19019816,0.00020486,2]
[364945944,1749336447080,-332.49085156,0.00020486,2]
[364945946,1749336546111,-186.17630582,0.000189,2]
[364945947,1749336568152,-8313.44481116,0.00020016,2]
[364945970,1749336632679,-1686.55518884,0.00020016,2]
[364945972,1749336632690,-212.1344529,0.0002004,2]
[364945974,1749336632700,-460.113445,0.0002047,2]
[364945976,1749336632710,-300.0,0.00020484,2]
[364945978,1749336632720,-300.0,0.00020484,2]
[364945980,1749336632731,-1200.0,0.00020484,2]
[364945982,1749336632740,-12179.51602666,0.00020485,2]
[364945984,1749336632752,-3163.23305039,0.00020485,2]
[364945986,1749336632761,-440.0,0.00020485,2]
[364945988,1749336632771,-440.0,0.00020485,2]
[364945990,1749336632781,-1145.37,0.00020485,2]
[364945992,1749336632792,-440.0,0.00020485,2]
[364945994,1749336632802,-440.0,0.00020485,2]
[364945996,1749336632811,-440.0,0.00020485,2]
[364945998,1749336632822,-440.0,0.00020485,2]
[364946000,1749336632832,-440.0,0.00020485,2]
[364946002,1749336632842,-440.0,0.00020485,2]
[364946004,1749336632852,-440.0,0.00020485,2]
[364946005,1749336632861,-490.28,0.00020485,2]
[364946006,1749336632871,-582.8,0.00020485,2]
[364946007,1749336632880,-509.7,0.00020485,2]
[364946008,1749336632891,-440.0,0.00020485,2]
[364946009,1749336632900,-18942.31895028,0.00020486,2]
[364946010,1749336632910,-200.81271759,0.0002065,2]
[364946011,1749336632932,-172.838547,0.0002075,2]
[364946012,1749336632943,-420.0,0.00020759,2]
[364946013,1749336632953,-420.0,0.00020759,2]
[364946014,1749336632964,-1145.37,0.00020759,2]
[364946015,1749336632974,-440.0,0.00020759,2]
[364946016,1749336632984,-440.0,0.00020759,2]
[364946017,1749336632994,-440.0,0.00020759,2]
[364946018,1749336633005,-440.0,0.00020759,2]
[364946019,1749336633015,-410.0,0.00020759,2]
[364946020,1749336633194,-440.0,0.00020759,2]
[364946021,1749336633205,-484.46,0.00020759,2]
[364946023,1749336633215,-490.28,0.00020759,2]
[364946024,1749336633225,-582.8,0.00020759,2]
[364946025,1749336633234,-509.7,0.00020759,2]
[364946026,1749336633244,-440.0,0.00020759,2]
[364946027,1749336633255,-807.5,0.00020807,2]
[364946028,1749336633264,-440.0,0.00020815,2]
[364946029,1749336633274,-430.0,0.00020815,2]
[364946030,1749336633284,-164.641114,0.00020965,2]
[364946031,1749336633294,-1145.37,0.00021033,2]
[364946032,1749336633304,-440.0,0.00021033,2]
[364946033,1749336633314,-440.0,0.00021033,2]
[364946034,1749336633323,-440.0,0.00021033,2]
[364946036,1749336633333,-410.0,0.00021033,2]
[364946038,1749336633343,-410.0,0.00021033,2]
[364946040,1749336633353,-490.28,0.00021033,2]
[364946042,1749336633363,-582.8,0.00021033,2]
[364946044,1749336633373,-509.7,0.00021033,2]
[364946045,1749336633382,-500.0,0.00021212,2]
[364946047,1749336633392,-200.81271754,0.00021212,2]